fUSD/lending_fUSD_20240825
["ID","MTS","AMOUNT","RATE_DAILY","PERIOD"]
[335924456,1724604634348,-500.0,0.00010988,2]
[335924457,1724604634358,-500.0,0.00010988,2]
[335924458,1724604634367,-205.82,0.00010988,2]
[335924459,1724604634377,-1060.78,0.00010988,2]
[335924460,1724604634387,-891.75,0.00010988,2]
[335924461,1724604634396,-500.0,0.00010988,2]
[335924462,1724604634406,-3270.42,0.00010988,2]
[335924463,1724604634421,-19904.07,0.00010988,2]
[335924464,1724604634433,-500.0,0.00010988,2]
[335924465,1724604634442,-500.0,0.00010988,2]
[335924466,1724604634452,-500.0,0.00010988,2]
[335924467,1724604634461,-500.0,0.00010988,2]
[335924468,1724604634471,-500.0,0.00010988,2]
[335924469,1724604634480,-261.81,0.00010988,2]
[335924470,1724604634490,-1564.32,0.00010988,2]
[335924471,1724604634500,-500.0,0.00010988,2]
[335924472,1724604634509,-500.0,0.00010988,2]
[335924473,1724604634518,-500.0,0.00010988,2]
[335924474,1724604634527,-500.0,0.00010988,2]
[335924475,1724604634537,-561.3,0.00010988,2]
[335924476,1724604634547,-243.51,0.00010988,2]
[335924477,1724604634556,-722.84,0.00010988,2]
[335924478,1724604634565,-500.0,0.00010988,2]
[335924479,1724604634575,-500.0,0.00010988,2]
[335924480,1724604634585,-2696.58,0.00010988,2]
[335924481,1724604634594,-500.0,0.00010988,2]
[335924482,1724604634604,-1815.67,0.00010988,2]
[335924483,1724604634613,-483.14784711,0.00010988,2]
[335924484,1724604634622,-531.96,0.00010988,2]
[335924485,1724604634631,-500.0,0.00010988,2]
[335924486,1724604634641,-500.0,0.00010988,2]
[335924487,1724604634650,-1468.97,0.00010988,2]
[335924488,1724604634660,-1142.64,0.00010988,2]
[335924489,1724604634670,-500.0,0.00010988,2]
[335924490,1724604634679,-500.0,0.00010988,2]
[335924491,1724604634689,-866.87,0.00010988,2]
[335924492,1724604634697,-500.0,0.00010988,2]
[335924493,1724604634707,-1621.32,0.00010988,2]
[335924494,1724604634716,-500.0,0.00010988,2]
[335924495,1724604634725,-837.68,0.00010988,2]
[335924496,1724604634734,-500.0,0.00010988,2]
[335924497,1724604634743,-500.0,0.00010988,2]
[335924498,1724604634752,-625.28,0.00010988,2]
[335924499,1724604634761,-500.0,0.00010988,2]
[335924500,1724604634771,-500.0,0.00010988,2]
[335924501,1724604634780,-500.0,0.00010988,2]
[335924502,1724604634790,-239.1380164,0.00010989,2]
[335924503,1724604634799,-500.0,0.00010989,2]
[335924504,1724604634808,-500.0,0.00010989,2]
[335924505,1724604634821,-200.5924143,0.00010989,2]
[335924506,1724604634982,-299.4075857,0.00010989,2]
[335924507,1724604634992,-500.0,0.00010989,2]
[335924508,1724604635001,-500.0,0.00010989,2]
[335924509,1724604635010,-500.0,0.00010989,2]
[335924510,1724604635019,-500.0,0.00010989,2]
[335924511,1724604635029,-500.0,0.00010989,2]
[335924512,1724604635038,-500.0,0.00010989,2]
[335924513,1724604635047,-500.0,0.00010989,2]
[335924514,1724604635056,-500.0,0.00010989,2]
[335924515,1724604635066,-500.0,0.00010989,2]
[335924516,1724604635075,-500.0,0.00010989,2]
[335924517,1724604635084,-500.0,0.00010989,2]
[335924518,1724604635093,-500.0,0.00010989,2]
[335924519,1724604635102,-500.0,0.00010989,2]
[335924520,1724604635111,-513.2,0.00010989,2]
[335924521,1724604635121,-240.18616656,0.00010989,2]
[335924522,1724604635132,-259.81383344,0.00010989,2]
[335924523,1724604635141,-500.0,0.00010989,2]
[335924524,1724604635150,-526.32,0.00010989,2]
[335924525,1724604635159,-456.24,0.00010989,2]
[335924526,1724604635172,-500.0,0.00010989,2]
[335924527,1724604635181,-202.62148255,0.00010989,2]
[335924528,1724604635190,-500.0,0.00010989,2]
[335924529,1724604635199,-500.0,0.00010989,2]
[335924530,1724604635208,-500.0,0.00010989,2]
[335924531,1724604635218,-500.0,0.00010989,2]
[335924532,1724604635227,-500.0,0.00010989,2]
[335924533,1724604635236,-500.0,0.00010989,2]
[335924534,1724604635245,-732.22,0.00010989,2]
[335924535,1724604635254,-500.0,0.00010989,2]
[335924536,1724604635264,-500.0,0.00010989,2]
[335924537,1724604635273,-500.0,0.00010989,2]
[335924538,1724604635282,-500.0,0.00010989,2]
[335924539,1724604635291,-500.0,0.00010989,2]
[335924540,1724604635300,-500.0,0.00010989,2]
[335924541,1724604635310,-500.0,0.00010989,2]
[335924542,1724604635319,-500.0,0.00010989,2]
[335924543,1724604635328,-1401.3,0.00010989,2]
[335924544,1724604635338,-500.0,0.00010989,2]
[335924545,1724604635347,-500.0,0.00010989,2]
[335924546,1724604635356,-500.0,0.00010989,2]
[335924547,1724604635366,-500.0,0.00010989,2]
[335924548,1724604635375,-318.75,0.00010989,2]
[335924549,1724604635384,-500.0,0.00010989,2]
[335924550,1724604635393,-500.0,0.00010989,2]
[335924551,1724604635403,-16715.05,0.00010989,2]
[335924552,1724604635412,-500.0,0.00010989,2]
[335924553,1724604635422,-500.0,0.00010989,2]
[335924554,1724604635431,-500.0,0.00010989,2]
[335924555,1724604635577,-500.0,0.00010989,2]
[335924556,1724604635586,-500.0,0.00010989,2]
[335924557,1724604635595,-500.0,0.00010989,2]
[335924558,1724604635605,-1060.78,0.00010989,2]
[335924559,1724604635614,-19904.07,0.00010989,2]
[335924560,1724604635623,-500.0,0.00010989,2]
[335924561,1724604635632,-500.0,0.00010989,2]
[335924562,1724604635641,-500.0,0.00010989,2]
[335924563,1724604635650,-500.0,0.00010989,2]
[335924564,1724604635659,-500.0,0.00010989,2]
[335924565,1724604635671,-500.0,0.00010989,2]
[335924566,1724604635680,-500.0,0.00010989,2]
[335924567,1724604635689,-500.0,0.00010989,2]
[335924568,1724604635698,-500.0,0.00010989,2]
[335924569,1724604635707,-561.3,0.00010989,2]
[335924570,1724604635716,-500.0,0.00010989,2]
[335924571,1724604635725,-531.96,0.00010989,2]
[335924572,1724604635735,-500.0,0.00010989,2]
[335924573,1724604635744,-151059.31785076,0.0001099,3]
[335924574,1724604635753,-500.0,0.00010991,2]
[335924575,1724604635763,-500.0,0.00010991,2]
[335924576,1724604635772,-500.0,0.00010991,2]
[335924577,1724604635782,-500.0,0.00010991,2]
[335924578,1724604635792,-500.0,0.00010991,2]
[335924579,1724604635802,-500.0,0.00010991,2]
[335924580,1724604635815,-500.0,0.00010991,2]
[335924581,1724604635828,-500.0,0.00010991,2]
[335924582,1724604635839,-500.0,0.00010991,2]
[335924583,1724604635849,-500.0,0.00010991,2]
[335924584,1724604635859,-500.0,0.00010991,2]
[335924585,1724604635869,-500.0,0.00010991,2]
[335924586,1724604635878,-500.0,0.00010991,2]
[335924587,1724604635887,-500.0,0.00010991,2]
[335924588,1724604635898,-500.0,0.00010991,2]
[335924589,1724604635908,-500.0,0.00010991,2]
[335924590,1724604635917,-500.0,0.00010991,2]
[335924591,1724604635927,-500.0,0.00010991,2]
[335924592,1724604635935,-1564.32,0.00010991,2]
[335924593,1724604635945,-500.0,0.00010991,2]
[335924594,1724604635954,-543.26952765,0.00010991,2]
[335924595,1724604635964,-722.84,0.00010991,2]
[335924596,1724604635975,-500.0,0.00010991,2]
[335924597,1724604635986,-500.0,0.00010991,2]
[335924598,1724604635995,-2696.58,0.00010991,2]
[335924599,1724604636005,-1815.67,0.00010991,2]
[335924600,1724604636014,-436.69,0.00010991,2]
[335924601,1724604636023,-500.0,0.00010991,2]
[335924602,1724604636034,-1142.64,0.00010991,2]
[335924603,1724604636043,-500.0,0.00010991,2]
[335924604,1724604636052,-866.87,0.00010991,2]
[335924605,1724604636062,-500.0,0.00010991,2]
[335924606,1724604636071,-1621.32,0.00010991,2]
[335924607,1724604636080,-837.68,0.00010991,2]
[335924608,1724604636089,-500.0,0.00010991,2]
[335924609,1724604636100,-500.0,0.00010991,2]
[335924610,1724604636110,-625.28,0.00010991,2]
[335924611,1724604636120,-500.0,0.00010991,2]
[335924612,1724604636130,-12343.7050855,0.00010992,2]
[335924613,1724604636139,-24777.55094628,0.00010992,2]
[335924614,1724604636151,-23039.46764082,0.00010992,2]
[335924615,1724604636161,-152.01053153,0.00010995,2]
[335924616,1724604636171,-500.0,0.00010996,2]
[335924617,1724604636180,-500.0,0.00010996,2]
[335924618,1724604636190,-541.51,0.00010996,2]
[335924619,1724604636199,-500.0,0.00010996,2]
[335924620,1724604636208,-500.0,0.00010996,2]
[335924621,1724604636217,-500.0,0.00010996,2]
[335924622,1724604636226,-891.75,0.00010996,2]
[335924623,1724604636235,-3270.42,0.00010996,2]
[335924624,1724604636245,-1468.97,0.00010996,2]
[335924625,1724604636255,-500.0,0.00010996,2]
[335924626,1724604636264,-500.0,0.00010996,2]
[335924627,1724604636274,-500.0,0.00010996,2]
[335924628,1724604636283,-152.01053153,0.00010996,2]
[335924629,1724604636292,-1064.07372071,0.00010997,2]
[335924630,1724604636301,-500.0,0.00010997,2]
[335924631,1724604636311,-732.22,0.00010997,2]
[335924632,1724604636321,-500.0,0.00010997,2]
[335924633,1724604636330,-1401.3,0.00010997,2]
[335924634,1724604636339,-16715.05,0.00010997,2]
[335924635,1724604636349,-500.0,0.00010997,2]
[335924636,1724604636360,-500.0,0.00010997,2]
[335924637,1724604636370,-500.0,0.00010997,2]
[335924638,1724604636379,-619.64,0.00010997,2]
[335924639,1724604636388,-1060.78,0.00010997,2]
[335924640,1724604636399,-500.0,0.00010997,2]
[335924641,1724604636408,-15463.55851756,0.00010997,2]
[335924642,1724604636426,-1765.30034146,0.00010997,2]
[335924643,1724604636437,-1127.61331614,0.00010997,2]
[335924648,1724604637998,-613.34503512,0.00010997,2]
[335924649,1724604638054,-934.25278972,0.00010997,2]
[335924650,1724604638064,-500.0,0.00010997,2]
[335924651,1724604638074,-500.0,0.00010997,2]
[335924652,1724604638084,-429.76172454,0.00010997,2]
[335924653,1724604638096,-131.53827546,0.00010997,2]
[335924654,1724604638105,-500.0,0.00010997,2]
[335924655,1724604638115,-93.43356455,0.00010997,2]
[335924656,1724604638126,-1290.50660228,0.00010997,2]
[335924657,1724604638137,-869.77979592,0.00010997,2]
[335924658,1724604638148,-442.86003725,0.00010997,2]
[335924659,1724604638157,-500.0,0.00010997,2]
[335924660,1724604638167,-531.96,0.00010997,2]
[335924661,1724604638177,-84.22208849,0.00010997,2]
[335924662,1724604638189,-415.77791151,0.00010997,2]
[335924663,1724604638199,-5471.55788645,0.00010998,2]
[335924664,1724604638208,-1000.0,0.00010998,2]
[335924665,1724604638217,-1118.65632901,0.00010998,3]
[335924666,1724604638227,-500.0,0.00010998,2]
[335924667,1724604638243,-500.0,0.00010998,2]
[335924668,1724604638256,-500.0,0.00010998,2]
[335924669,1724604638266,-500.0,0.00010998,2]
[335924670,1724604638276,-500.0,0.00010998,2]
[335924671,1724604638286,-500.0,0.00010998,2]
[335924672,1724604638296,-500.0,0.00010998,2]
[335924673,1724604638307,-482.64,0.00010998,2]
[335924674,1724604638316,-500.0,0.00010998,2]
[335924675,1724604638326,-500.0,0.00010998,2]
[335924676,1724604638336,-303.32,0.00010998,2]
[335924677,1724604638346,-500.0,0.00010998,2]
[335924678,1724604638356,-500.0,0.00010998,2]
[335924679,1724604638366,-500.0,0.00010998,2]
[335924680,1724604638375,-500.0,0.00010998,2]
[335924681,1724604638385,-500.0,0.00010998,2]
[335924683,1724604638396,-319.0,0.00010998,2]
[335924685,1724604638406,-500.0,0.00010998,2]
[335924686,1724604638417,-478.9024492,0.00010998,2]
[335924687,1724604638427,-151.0,0.00010998,2]
[335924688,1724604638436,-151.0,0.00010998,2]
[335924689,1724604638446,-151.0,0.00010998,2]
[335924690,1724604638455,-500.0,0.00010998,2]
[335924691,1724604638465,-151.0,0.00010998,2]
[335924692,1724604638475,-500.0,0.00010998,2]
[335924693,1724604638485,-151.0,0.00010998,2]
[335924694,1724604638494,-151.0,0.00010998,2]
[335924695,1724604638504,-78.8840025,0.00010998,2]
[335924696,1724604638521,-306.3159975,0.00010998,2]
[335924697,1724604638530,-151.0,0.00010998,2]
[335924698,1724604638539,-151.0,0.00010998,2]
[335924699,1724604638548,-151.0,0.00010998,2]
[335924700,1724604638558,-282.28414,0.00010998,2]
[335924701,1724604638567,-500.0,0.00010998,2]
[335924702,1724604638577,-500.0,0.00010998,2]
[335924703,1724604638586,-500.0,0.00010998,2]
[335924704,1724604638595,-167.88650209,0.00010998,2]
[335924705,1724604638606,-332.11349791,0.00010998,2]
[335924706,1724604638615,-500.0,0.00010998,2]
[335924707,1724604638625,-500.0,0.00010998,2]
[335924708,1724604638634,-195.179276,0.00010998,2]
[335924709,1724604638643,-151.0,0.00010998,2]
[335924710,1724604638652,-195.179276,0.00010998,2]
[335924711,1724604638662,-225.270769,0.00010998,2]
[335924712,1724604638673,-151.0,0.00010998,2]
[335924713,1724604638682,-151.0,0.00010998,2]
[335924714,1724604638692,-151.466575,0.00010998,2]
[335924715,1724604638701,-500.0,0.00010998,2]
[335924716,1724604638711,-500.0,0.00010998,2]
[335924717,1724604638719,-500.0,0.00010998,2]
[335924718,1724604638730,-500.0,0.00010998,2]
[335924719,1724604638739,-500.0,0.00010998,2]
[335924720,1724604638748,-500.0,0.00010998,2]
[335924721,1724604638757,-500.0,0.00010998,2]
[335924722,1724604638767,-500.0,0.00010998,2]
[335924723,1724604638776,-500.0,0.00010998,2]
[335924724,1724604638786,-732.22,0.00010998,2]
[335924725,1724604638795,-732.22,0.00010998,2]
[335924726,1724604638804,-151.0,0.00010998,2]
[335924727,1724604638813,-500.0,0.00010998,2]
[335924728,1724604638827,-500.0,0.00010998,2]
[335924729,1724604638836,-500.0,0.00010998,2]
[335924730,1724604638845,-500.0,0.00010998,2]
[335924731,1724604638854,-500.0,0.00010998,2]
[335924732,1724604638864,-500.0,0.00010998,2]
[335924733,1724604638873,-1401.3,0.00010998,2]
[335924734,1724604638883,-1401.3,0.00010998,2]
[335924735,1724604638894,-151.0,0.00010998,2]
[335924736,1724604638904,-500.0,0.00010998,2]
[335924737,1724604638913,-500.0,0.00010998,2]
[335924738,1724604638922,-16452.42966946,0.00010998,2]
[335924739,1724604638934,-262.62033054,0.00010998,2]
[335924740,1724604638943,-493.88096185,0.00010998,2]
[335924741,1724604638955,-1393.41253977,0.00010998,2]
[335924742,1724604638966,-421.78588728,0.00010998,2]
[335924743,1724604638976,-435.3754019,0.00010998,2]
[335924744,1724604638987,-11129.9312,0.00010998,2]
[335924745,1724604638999,-2603.10643675,0.00010998,2]
[335924746,1724604639010,-237.55757245,0.00010998,2]
[335924747,1724604639019,-1538.763505,0.00010998,2]
[335924748,1724604639029,-541.51,0.00010998,2]
[335924749,1724604639038,-541.51,0.00010998,2]
[335924750,1724604639047,-297.9,0.00010998,2]
[335924751,1724604639056,-1395.47522862,0.00010998,2]
[335924752,1724604639067,-143.28827638,0.00010998,2]
[335924753,1724604639077,-282.11172362,0.00010998,2]
[335924763,1724604640706,-217.88827638,0.00010998,2]
[335924764,1724604640715,-500.0,0.00010998,2]
[335924765,1724604640724,-151.0,0.00010998,2]
[335924766,1724604640733,-151.0,0.00010998,2]
[335924767,1724604640742,-500.0,0.00010998,2]
[335924768,1724604640751,-500.0,0.00010998,2]
[335924769,1724604640760,-54.65468862,0.00010998,2]
[335924770,1724604640772,-96.34531138,0.00010998,2]
[335924771,1724604640782,-152.3795,0.00010998,2]
[335924772,1724604640791,-500.0,0.00010998,2]
[335924773,1724604640799,-500.0,0.00010998,2]
[335924774,1724604640808,-500.0,0.00010998,2]
[335924775,1724604640819,-500.0,0.00010998,2]
[335924776,1724604640829,-500.0,0.00010998,2]
[335924777,1724604640839,-500.0,0.00010998,2]
[335924778,1724604640848,-500.0,0.00010998,2]
[335924779,1724604640858,-500.0,0.00010998,2]
[335924780,1724604640868,-151.0,0.00010998,2]
[335924781,1724604640877,-151.0,0.00010998,2]
[335924782,1724604640886,-500.0,0.00010998,2]
[335924783,1724604640897,-500.0,0.00010998,2]
[335924784,1724604640906,-500.0,0.00010998,2]
[335924785,1724604640917,-500.0,0.00010998,2]
[335924786,1724604640937,-151.0,0.00010998,2]
[335924787,1724604640946,-198.27518862,0.00010998,2]
[335924811,1724604643126,-301.72481138,0.00010998,2]
[335924812,1724604643137,-500.0,0.00010998,2]
[335924813,1724604643147,-1060.78,0.00010998,2]
[335924814,1724604643159,-1060.78,0.00010998,2]
[335924815,1724604643170,-891.75,0.00010998,2]
[335924816,1724604643180,-891.75,0.00010998,2]
[335924817,1724604643189,-272.32,0.00010998,2]
[335924818,1724604643198,-1000.73797199,0.00010998,2]
[335924819,1724604643209,-371.42180022,0.00010998,2]
[335924820,1724604643220,-1898.26022779,0.00010998,2]
[335924821,1724604643230,-2073.83906505,0.00010998,2]
[335924822,1724604643245,-343.81687282,0.00010998,2]
[335924823,1724604643293,-614.29174979,0.00010998,2]
[335924824,1724604643305,-238.47231234,0.00010998,2]
[335924825,1724604643314,-17043.78938031,0.00010998,2]
[335924826,1724604643325,-2248.95674392,0.00010998,2]
[335924827,1724604643349,-611.32387577,0.00010998,2]
[335924828,1724604643358,-8212.66959375,0.00010998,2]
[335924829,1724604643369,-1377.53454,0.00010998,2]
[335924830,1724604643409,-2551.14997692,0.00010998,2]
[335924845,1724604645956,-2394.74835214,0.00010998,2]
[335924846,1724604646015,-1321.4022825,0.00010998,2]
[335924847,1724604646073,-4046.56525469,0.00010998,2]
[335924848,1724604646083,-500.0,0.00010998,2]
[335924849,1724604646092,-500.0,0.00010998,2]
[335924850,1724604646101,-500.0,0.00010998,2]
[335924851,1724604646110,-153.48,0.00010998,2]
[335924852,1724604646120,-151.0,0.00010998,2]
[335924853,1724604646130,-521.38915051,0.00010998,2]
[335924854,1724604646141,-592.20419882,0.00010998,2]
[335924855,1724604646152,-450.72665067,0.00010998,2]
[335924856,1724604646161,-138.70752615,0.00010998,2]
[335924857,1724604646173,-611.804,0.00010998,2]
[335924858,1724604646195,-813.80847385,0.00010998,2]
[335924859,1724604646204,-226.87138011,0.00010998,2]
[335924860,1724604646299,-273.12861989,0.00010998,2]
[335924861,1724604646309,-130.40524844,0.00010998,2]
[335924862,1724604646357,-369.59475156,0.00010998,2]
[335924863,1724604646366,-500.0,0.00010998,2]
[335924864,1724604646376,-500.0,0.00010998,2]
[335924865,1724604646386,-499.77154064,0.00010998,2]
[335924866,1724604646398,-0.22845936,0.00010998,2]
[335924867,1724604646408,-500.0,0.00010998,2]
[335924868,1724604646420,-30.37154064,0.00010998,2]
[335924870,1724604761891,201.63,9.966e-05,2]
[335924872,1724604833308,160.16,9.958e-05,2]
[335924873,1724604857309,96.26923,9.966e-05,2]
[335924874,1724604857330,2711.66791417,9.966e-05,2]
[335924875,1724604857539,809.60664534,9.966e-05,2]
[335924876,1724604857559,4467.40203454,9.966e-05,2]
[335924877,1724604860151,305.0,9.966e-05,2]
[335924878,1724604862503,694.05179249,9.966e-05,2]
[335924879,1724604867503,160.46,9.947e-05,2]
[335924880,1724604869807,1271.90754797,9.966e-05,2]
[335924881,1724604896639,323.93,8.219e-05,2]
[335924882,1724604898452,434.60721071,9.966e-05,2]
[335924884,1724604936546,200.0,9.919e-05,2]
[335924885,1724604943857,500.0,9.966e-05,2]
[335924886,1724604944195,500.0,9.966e-05,2]
[335924887,1724604944531,500.0,9.966e-05,2]
[335924888,1724604944849,500.0,9.966e-05,2]
[335924889,1724604945199,142.64141429,9.966e-05,2]
[335924890,1724604945222,357.35858571,9.966e-05,2]
[335924891,1724604945559,500.0,9.966e-05,2]
[335924892,1724604950503,694.05179249,9.966e-05,2]
[335924893,1724604983464,1391.23,9.924e-05,2]
[335924895,1724605046499,693.33682935,9.924e-05,2]
[335924896,1724605076458,1148.36,9.911e-05,2]
[335924897,1724605078116,93219.0,0.00025,60]
[335924899,1724605110165,294.0,9.911e-05,2]
[335924901,1724605179234,4921.66279245,9.911e-05,2]
[335924902,1724605179255,10000.0,9.911e-05,2]
[335924903,1724605179274,1328.61043336,9.911e-05,2]
[335924904,1724605183855,8671.38956664,9.901e-05,2]
[335924905,1724605183876,1328.61043336,9.901e-05,2]
[335924906,1724605204311,1994.4354771,9.911e-05,2]
[335924907,1724605237021,1000.0,9.91e-05,2]
[335924908,1724605250144,1185.08817196,9.901e-05,2]
[335924910,1724605273187,192.14261377,9.996e-05,2]
[335924911,1724605292938,4299.72330381,0.00010009,2]
[335924912,1724605292960,10000.0,0.00010009,2]
[335924913,1724605292980,10000.0,0.00010009,2]
[335924914,1724605293000,10000.0,0.00010009,2]
[335924915,1724605293020,1448.49081418,0.00010009,2]
[335924916,1724605313478,8551.50918582,9.917e-05,2]
[335924917,1724605313507,10000.0,9.917e-05,2]
[335924918,1724605313529,5348.49081418,9.917e-05,2]
[335924919,1724605320176,485.07840464,0.00010009,2]
[335924920,1724605342305,238.69,9.897e-05,2]
[335924921,1724605351008,299.50985244,0.00010009,2]
[335924922,1724605370488,500.0,0.00010009,2]
[335924923,1724605372091,182.04444188,0.00010009,2]
[335924924,1724605373047,155.20124534,0.00010009,2]
[335924925,1724605373076,413.49966625,0.00010009,2]
[335924926,1724605373715,2377.48557527,9.892e-05,2]
[335924927,1724605373736,1166.14442473,9.892e-05,2]
[335924928,1724605381909,250.0,9.892e-05,2]
[335924929,1724605384871,170.36289186,0.00010009,2]
[335924930,1724605400435,500.0,0.00010009,2]
[335924931,1724605405410,452.34,8.219e-05,2]
[335924932,1724605421023,200.0,9.893e-05,2]
[335924933,1724605421668,523.72480754,0.0001,2]
[335924934,1724605446944,500.0,0.0001,2]
[335924935,1724605462705,485.77175334,0.0001,2]
[335924936,1724605476997,187.38,9.893e-05,2]
[335924937,1724605483818,1151.46945522,0.00027,120]
[335924938,1724605505276,646.89,9.886e-05,2]
[335924939,1724605508574,4648.75,9.886e-05,2]
[335924940,1724605514692,150.0,9.888e-05,2]
[335924941,1724605534917,118.63612253,9.897e-05,2]
[335924942,1724605534938,310.89387747,9.897e-05,2]
[335924943,1724605549017,150.0,0.0001,2]
[335924944,1724605551217,348.87,9.977e-05,2]
[335926320,1724605623255,1103.31,9.903e-05,2]
[335926321,1724605625463,850.2,9.903e-05,2]
[335926322,1724605665190,4547.02594391,9.997e-05,2]
[335926323,1724605702529,265.94888895,0.00010009,2]
[335926324,1724605709571,2423.75128967,9.911e-05,2]
[335926325,1724605709593,4184.11871033,9.911e-05,2]
[335926328,1724605770397,1306.0,0.00025,60]
[335926331,1724605802040,200.0,9.89e-05,2]
[335926332,1724605825556,-271.0,0.00010096,2]
[335926333,1724605832152,-179.54,0.00010455,2]
[335926334,1724605832163,-168.42815075,0.0001047,2]
[335926335,1724605832175,-283.91184925,0.0001047,2]
[335926336,1724605832184,-155.0,0.00010566,2]
[335926337,1724605832194,-1717.5,0.0001058,2]
[335926338,1724605832206,-1008.33815142,0.00010645,2]
[335926339,1724605832217,-500.0,0.00010645,2]
[335926340,1724605832228,-1769.50597158,0.00010645,2]
[335926341,1724605832238,-160.47379255,0.00010699,2]
[335926342,1724605832249,-300.0,0.00010733,2]
[335926343,1724605832258,-299.99,0.00010734,2]
[335926344,1724605832268,-2701.73,0.00010734,2]
[335926345,1724605832277,-16577.05,0.00010767,2]
[335926346,1724605832286,-150.0,0.00010767,2]
[335926347,1724605832297,-1258.0,0.00010768,2]
[335926348,1724605832306,-1544.0,0.00010768,2]
[335926349,1724605832315,-447.0,0.00010768,2]
[335926350,1724605832325,-556.0,0.00010768,2]
[335926351,1724605832334,-810.0,0.00010768,2]
[335926352,1724605832343,-1896.0,0.00010776,2]
[335926353,1724605832352,-551.0,0.00010776,2]
[335926354,1724605832361,-3319.0,0.00010776,2]
[335926355,1724605832370,-1165.0,0.00010777,2]
[335926356,1724605832379,-247.0,0.00010777,2]
[335926357,1724605832389,-764.0,0.00010777,2]
[335926358,1724605832398,-289.0,0.00010777,2]
[335926359,1724605832408,-1668.507,0.00010777,2]
[335926360,1724605832420,-3727.0,0.00010777,2]
[335926361,1724605832429,-6335.512,0.00010777,2]
[335926362,1724605832438,-1362.06320368,0.00010799,2]
[335926363,1724605832447,-981.3,0.00010825,2]
[335926364,1724605832456,-1884.27,0.00010825,2]
[335926365,1724605832465,-1347.34593694,0.00010852,2]
[335926366,1724605832475,-155.0,0.00010852,2]
[335926367,1724605832484,-1923.0,0.00010856,2]
[335926368,1724605832492,-623.0,0.00010856,2]
[335926369,1724605832501,-1740.72914034,0.00010861,2]
[335926370,1724605832510,-266.74906548,0.00010861,2]
[335926371,1724605832519,-149.68463722,0.00010861,2]
[335926372,1724605832558,-291.20394087,0.00010861,2]
[335926374,1724605832567,-628.77389458,0.00010861,2]
[335926376,1724605832577,-164.40260801,0.00010862,2]
[335926378,1724605832586,-3236.1997,0.00010883,2]
[335926380,1724605832595,-693.96130971,0.00010883,2]
[335926381,1724605832606,-615.37909029,0.00010883,2]
[335926382,1724605832615,-1181.8267,0.00010887,2]
[335926383,1724605832625,-3589.5239,0.00010887,2]
[335926384,1724605832634,-280.7111726,0.00010888,2]
[335926385,1724605832644,-155.13013977,0.00010888,2]
[335926386,1724605832654,-300.0,0.00010888,2]
[335926387,1724605832664,-1546.5954,0.0001089,2]
[335926388,1724605832673,-1546.5954,0.0001089,2]
[335926389,1724605832682,-1834.80912,0.0001089,2]
[335926390,1724605832691,-304.08334266,0.0001089,2]
[335926391,1724605832701,-155.0,0.0001089,2]
[335926392,1724605832710,-330.55308223,0.0001089,2]
[335926393,1724605832720,-155.18340632,0.0001089,2]
[335926394,1724605832729,-4088.27063076,0.0001089,2]
[335926395,1724605832739,-395.41564417,0.0001089,2]
[335926396,1724605832748,-432.99728799,0.0001089,2]
[335926397,1724605832757,-215.57492419,0.00010897,2]